bitfinex/quotes_SOLUSD_20240604
["timestamp","ask_amount","ask_price","bid_price","bid_amount"]
[1717504573339,2.2286,166.02,165.99,7.02]
[1717504573767,2.2286,166.02,165.97,2.2292]
[1717504573944,2.2286,166.02,165.99,7.02]
[1717504575868,2.2286,166.02,165.97,2.2292]
[1717504576072,2.2288,166.01,165.96,2.2293]
[1717504576259,2.2288,166.01,165.98,7.02]
[1717504577977,2.2288,166.01,165.96,2.2293]
[1717504578268,11.4767,166.04,165.95,2.2295]
[1717504578269,2.2289,166.0,165.95,2.2295]
[1717504578491,2.2289,166.0,165.97,7.02]
[1717504579148,2.2289,166.0,165.95,2.2295]
[1717504579348,2.2289,166.0,165.97,7.02]
[1717504580261,2.2289,166.0,165.96,7.02]
[1717504581072,2.2291,165.99,165.95,7.02]
[1717504581972,2.2292,165.98,165.95,7.02]
[1717504582658,2.229,165.99,165.96,7.02]
[1717504583476,2.2291,165.98,165.95,7.02]
[1717504584277,2.2291,165.98,165.96,7.02]
[1717504585769,13.3715,166.03,165.97,7.02]
[1717504586085,13.3715,166.03,165.98,7.02]
[1717504586086,2.2288,166.01,165.98,7.02]
[1717504586272,20.0571,166.03,165.98,7.02]
[1717504586454,8.9144,166.03,165.98,7.02]
[1717504586654,2.2287,166.02,166.0,7.02]
[1717504587072,2.2287,166.01,165.99,7.02]
[1717504589458,2.2287,166.01,165.96,2.2293]
[1717504589659,2.2287,166.01,165.99,7.02]
[1717504592569,2.2285,166.03,166.0,7.02]
[1717504592759,2.2285,166.03,166.02,7.02]
[1717504593262,2.2285,166.03,166.01,7.02]
[1717504593460,2.2286,166.02,166.01,7.02]
[1717504594085,2.2286,166.02,166.0,7.02]
[1717504595287,2.2286,166.02,165.99,7.02]
[1717504596496,2.2286,166.02,166.0,7.02]
[1717504600283,2.2287,166.01,165.96,2.2293]
[1717504600488,2.2287,166.01,165.99,7.02]
[1717504602563,2.2287,166.02,165.99,7.02]
[1717504602783,2.2287,166.02,166.0,7.02]
[1717504604383,2.2287,166.02,165.97,2.2293]
[1717504604691,2.2287,166.01,166.0,7.02]
[1717504604891,2.2287,166.01,165.96,2.2293]
[1717504605190,2.2287,166.01,166.0,7.02]
[1717504605490,2.2287,166.01,165.99,7.02]
[1717504607189,2.2287,166.01,165.96,2.2293]
[1717504607371,2.2287,166.01,165.99,7.02]
[1717504608894,2.2287,166.01,165.96,2.2293]
[1717504609065,2.2287,166.01,165.99,7.02]
[1717504611097,2.2286,166.02,165.99,7.02]
[1717504611417,2.2286,166.02,166.0,7.02]
[1717504614572,15.9328,166.06,166.0,7.02]
[1717504614573,2.2287,166.01,166.0,7.02]
[1717504614780,2.2291,165.99,165.98,7.02]
[1717504615106,2.2291,165.99,165.97,7.02]
[1717504615318,4.4574,166.02,165.97,7.02]
[1717504615618,4.4574,166.02,165.96,7.02]
[1717504615619,2.2291,165.98,165.96,7.02]
[1717504616397,2.2291,165.98,165.94,8.5468]
[1717504616813,2.2291,165.98,165.96,7.02]
[1717504617198,2.229,165.99,165.94,8.5468]
[1717504617399,2.229,165.99,165.96,7.02]
[1717504618510,2.229,165.99,165.97,7.02]
[1717504619517,2.2291,165.98,165.96,7.02]
[1717504620111,2.2291,165.98,165.94,8.5467]
[1717504620297,2.2291,165.99,165.94,8.5467]
[1717504620498,2.2291,165.99,165.97,7.02]
[1717504620911,4.4578,166.0,165.93,2.2298]
[1717504621121,2.2294,165.97,165.96,7.02]
[1717504621706,2.2294,165.97,165.95,7.02]
[1717504621912,2.2294,165.97,165.92,8.7511]
[1717504622124,2.2294,165.97,165.95,7.02]
[1717504622599,2.2294,165.97,165.92,8.7511]
[1717504622925,2.2294,165.97,165.95,7.02]
[1717504623502,2.2294,165.97,165.96,7.02]
[1717504624113,2.2294,165.96,165.92,36.8311]
[1717504624622,2.2293,165.97,165.92,36.8311]
[1717504625134,4.4581,165.99,165.92,36.8311]
[1717504625135,2.2294,165.96,165.92,36.8311]
[1717504625422,2.2294,165.96,165.95,7.02]
[1717504625632,7.02,166.0,165.88,6.1095]
[1717504625815,2.2299,165.93,165.88,8.3399]
[1717504626011,2.2299,165.93,165.91,7.02]
[1717504626531,2.2297,165.94,165.91,7.02]
[1717504627198,2.2298,165.93,165.89,2.2303]
[1717504627411,2.2299,165.92,165.88,8.3399]
[1717504627611,2.2299,165.92,165.91,7.02]
[1717504627832,2.2299,165.93,165.88,8.3399]
[1717504628035,2.2299,165.93,165.91,7.02]
[1717504628824,2.2297,165.94,165.91,7.02]
[1717504629035,6.0306,166.0,165.92,7.02]
[1717504629217,2.2296,165.95,165.9,8.3304]
[1717504629396,20.0628,165.98,165.91,2.23]
[1717504629397,4.4585,165.98,165.91,2.23]
[1717504629602,12.7174,166.0,165.94,7.02]
[1717504629807,4.4581,165.99,165.95,7.02]
[1717504630854,2.2294,165.96,165.95,7.02]
[1717504631006,2.2293,165.97,165.95,7.02]
[1717504631729,2.2294,165.96,165.95,7.02]
[1717504635927,2.2296,165.95,165.91,6.4746]
[1717504636113,2.2296,165.95,165.94,7.02]
[1717504636432,4.4584,165.98,165.87,34.4327]
[1717504636433,2.2297,165.94,165.89,2.2303]
[1717504636734,2.2297,165.94,165.91,7.02]
[1717504637207,2.2296,165.95,165.91,7.02]
[1717504637409,4.4586,165.97,165.88,2.2304]
[1717504637410,2.2299,165.93,165.88,2.2304]
[1717504637809,2.2299,165.92,165.9,7.02]
[1717504638032,2.2299,165.93,165.9,7.02]
[1717504638914,2.2299,165.93,165.88,2.2304]
[1717504639404,2.2299,165.93,165.9,7.02]
[1717504640322,2.2299,165.93,165.88,2.2304]
[1717504640531,2.2299,165.93,165.9,7.02]
[1717504640740,2.23,165.92,165.9,7.02]
[1717504641237,2.2299,165.93,165.9,7.02]
[1717504641924,4.4594,165.94,165.86,6.1504]
[1717504642126,2.2301,165.91,165.88,7.02]
[1717504642705,2.23,165.92,165.88,7.02]
[1717504643521,2.23,165.92,165.89,7.02]
[1717504645749,2.2301,165.91,165.86,8.3811]
[1717504645924,2.2301,165.91,165.89,7.02]
[1717504646547,2.2301,165.91,165.88,7.02]
[1717504647143,2.2303,165.9,165.86,6.1504]
[1717504647647,2.2303,165.9,165.88,7.02]
[1717504649342,2.2303,165.9,165.86,6.1504]
[1717504649949,2.2303,165.9,165.87,7.02]
[1717504650123,2.2303,165.9,165.86,6.1504]
[1717504650324,2.2303,165.9,165.87,7.02]
[1717504650526,2.2303,165.9,165.86,6.1504]
[1717504651031,2.2303,165.9,165.87,7.02]
[1717504651947,4.4597,165.93,165.84,2.231]
[1717504651948,2.2304,165.89,165.84,2.231]
[1717504652156,7.02,165.92,165.82,10.8454]
[1717504652358,7.02,165.92,165.86,7.02]
[1717504653535,2.2303,165.9,165.86,7.02]
[1717504653746,2.2304,165.89,165.86,7.02]
[1717504656954,2.2304,165.89,165.84,2.231]
[1717504657335,2.2306,165.88,165.85,7.02]
[1717504658334,2.2304,165.89,165.85,7.02]
[1717504658763,2.2304,165.89,165.86,7.02]
[1717504659729,2.2304,165.89,165.84,2.231]
[1717504659930,2.2304,165.89,165.86,7.02]
[1717504660268,2.2304,165.89,165.84,2.231]
[1717504660440,2.2304,165.89,165.86,7.02]
[1717504660942,2.2305,165.88,165.83,2.2311]
[1717504661145,2.2305,165.88,165.85,7.02]
[1717504661444,2.2305,165.88,165.83,2.2311]
[1717504661745,2.2305,165.88,165.85,7.02]
[1717504663935,2.2305,165.88,165.83,2.2311]
[1717504664135,2.2307,165.87,165.82,2.5713]
[1717504664341,2.2307,165.87,165.84,7.02]
[1717504665153,11.4808,165.89,165.79,15.6263]
[1717504665335,2.2306,165.87,165.83,7.02]
[1717504665970,2.2306,165.87,165.82,2.2313]
[1717504666137,2.2306,165.87,165.84,7.02]
[1717504667278,2.2308,165.86,165.84,7.02]
[1717504667573,2.2308,165.86,165.81,2.2314]
[1717504667867,2.2308,165.86,165.82,7.02]
[1717504668264,2.2309,165.85,165.83,7.02]
[1717504668472,2.2309,165.85,165.82,7.02]
[1717504669044,2.2311,165.84,165.79,2.2316]
[1717504669267,7.02,165.87,165.8,7.02]
[1717504669456,2.2311,165.84,165.8,7.02]
[1717504670283,2.2311,165.84,165.81,7.02]
[1717504670962,2.2311,165.84,165.78,2.2318]
[1717504671170,2.2312,165.83,165.81,7.02]
[1717504671467,2.2312,165.83,165.8,7.02]
[1717504671661,2.2312,165.83,165.78,2.2318]
[1717504672279,2.2312,165.83,165.8,7.02]
[1717504672955,11.4817,165.86,165.76,28.08]
[1717504673158,2.2312,165.83,165.8,7.02]
[1717504674045,2.2312,165.83,165.78,2.2318]
[1717504674249,2.2313,165.82,165.79,7.02]
[1717504675876,2.2313,165.82,165.78,2.2318]
[1717504676084,2.2313,165.82,165.79,7.02]
[1717504677082,2.2315,165.81,165.76,2.232]
[1717504677290,2.2315,165.81,165.78,7.02]
[1717504677869,2.2315,165.81,165.76,2.232]
[1717504678091,2.2315,165.81,165.77,7.02]
[1717504678271,2.2315,165.81,165.76,9.252]
[1717504678879,2.2315,165.81,165.76,2.232]
[1717504679293,2.2315,165.81,165.77,7.02]
[1717504679601,2.2315,165.81,165.77,9.2519]
[1717504679769,2.2316,165.8,165.75,2.2321]
[1717504680295,2.2317,165.79,165.71,20.0943]
[1717504680590,2.2317,165.79,165.76,7.02]
[1717504680792,7.02,165.82,165.75,2.2322]
[1717504680966,2.2317,165.79,165.76,7.02]
[1717504681284,2.2317,165.79,165.75,7.02]
[1717504681875,7.02,165.81,165.73,2.2325]
[1717504682075,2.2319,165.78,165.75,7.02]
[1717504683192,2.2319,165.78,165.73,2.2325]
[1717504683412,2.2319,165.78,165.75,7.02]
[1717504683565,2.232,165.77,165.72,2.2326]
[1717504683770,2.232,165.77,165.7,6.1044]
[1717504683971,2.2319,165.78,165.74,7.02]
[1717504684187,2.232,165.77,165.75,7.02]
[1717504684393,2.2319,165.78,165.75,7.02]
[1717504684580,10.8963,165.84,165.77,7.02]
[1717504684787,10.8963,165.84,165.79,7.02]
[1717504685096,2.2315,165.81,165.79,7.02]
[1717504685596,2.2315,165.81,165.76,2.232]
[1717504685771,2.2315,165.81,165.79,7.02]
[1717504685979,2.2313,165.82,165.8,7.02]
[1717504687567,2.2316,165.8,165.79,7.02]
[1717504687767,2.2316,165.8,165.78,7.02]
[1717504688083,2.2315,165.81,165.78,7.02]
[1717504688281,2.2315,165.81,165.79,7.02]
[1717504688797,4.4623,165.84,165.79,7.02]
[1717504688985,2.2314,165.82,165.8,7.02]
[1717504689191,2.2312,165.83,165.8,7.02]
[1717504689800,2.2313,165.82,165.8,7.02]
[1717504690879,2.2316,165.8,165.75,2.2322]
[1717504691080,2.2316,165.8,165.78,7.02]
[1717504692108,2.2316,165.8,165.75,2.2322]
[1717504692481,2.2316,165.8,165.76,7.02]
[1717504693414,2.2316,165.8,165.77,7.02]
[1717504694106,2.2315,165.81,165.77,7.02]
[1717504694611,2.2315,165.81,165.78,7.02]
[1717504694778,6.082,165.81,165.69,8.9321]
[1717504694978,6.082,165.81,165.76,7.02]
[1717504695198,2.2317,165.79,165.77,7.02]
[1717504696504,2.2317,165.79,165.76,7.02]
[1717504696807,2.2318,165.78,165.76,7.02]
[1717504697008,2.2317,165.79,165.76,7.02]
[1717504697400,2.2318,165.78,165.76,7.02]
[1717504699014,2.232,165.77,165.76,7.02]
[1717504699315,2.232,165.77,165.75,7.02]
[1717504699609,2.2321,165.76,165.75,7.02]
[1717504699792,2.232,165.77,165.72,2.2326]
[1717504699994,2.232,165.77,165.75,7.02]
[1717504700608,2.232,165.77,165.73,2.2325]
[1717504700826,2.232,165.77,165.76,7.02]
[1717504701430,2.232,165.77,165.73,2.2325]
[1717504701590,2.232,165.77,165.76,7.02]
[1717504702096,10.7191,165.77,165.67,4.4666]
[1717504702299,2.2322,165.75,165.72,7.02]
[1717504702520,2.2322,165.75,165.73,7.02]
[1717504702697,2.2324,165.74,165.73,7.02]
[1717504703208,2.2323,165.75,165.73,7.02]
[1717504703702,2.2326,165.73,165.69,2.233]
[1717504704019,2.2326,165.73,165.72,7.02]
[1717504705536,2.2326,165.73,165.71,7.02]
[1717504705827,2.2326,165.73,165.68,2.2331]
[1717504706023,2.2326,165.73,165.65,17.3144]
[1717504706206,2.2327,165.72,165.7,7.02]
[1717504707102,2.2326,165.73,165.7,7.02]
[1717504707298,2.2326,165.73,165.71,7.02]
[1717504708504,2.2326,165.72,165.7,7.02]
[1717504709423,2.2326,165.73,165.7,7.02]
[1717504709733,2.2326,165.73,165.71,7.02]
[1717504710332,2.2326,165.72,165.71,7.02]
[1717504710505,2.2326,165.73,165.71,7.02]
[1717504710933,2.2326,165.72,165.68,2.2331]
[1717504711109,2.2326,165.72,165.71,7.02]
[1717504711427,2.2326,165.72,165.7,7.02]
[1717504712311,2.2325,165.73,165.7,7.02]
[1717504712623,2.2325,165.73,165.71,7.02]
[1717504713204,2.2326,165.72,165.71,7.02]
[1717504713641,2.2324,165.74,165.71,7.02]
[1717504713932,2.2324,165.74,165.73,7.02]
[1717504715231,11.1609,165.76,165.68,30.3131]
[1717504715419,11.1609,165.76,165.68,2.2331]
[1717504715732,2.2326,165.72,165.71,7.02]
[1717504716331,2.2326,165.72,165.67,2.2333]
[1717504716549,2.2328,165.71,165.7,7.02]
[1717504717408,2.2327,165.72,165.7,7.02]
[1717504717825,2.2328,165.71,165.7,7.02]
[1717504718215,2.2327,165.72,165.7,7.02]
[1717504718616,2.2328,165.71,165.67,2.2333]
[1717504718833,2.2328,165.71,165.7,7.02]
[1717504719026,2.2328,165.71,165.67,2.2333]
[1717504719234,2.2328,165.71,165.7,7.02]
[1717504719420,2.2328,165.71,165.67,2.2333]
[1717504719728,2.2328,165.71,165.69,7.02]
[1717504720428,2.2328,165.71,165.7,7.02]
[1717504720641,2.2327,165.72,165.7,7.02]
[1717504720828,2.2327,165.72,165.67,2.2333]
[1717504721147,2.2327,165.72,165.7,7.02]
[1717504724758,2.2328,165.71,165.67,2.2332]
[1717504724946,2.2328,165.71,165.69,7.02]
[1717504726747,2.2327,165.72,165.7,7.02]
[1717504728256,2.2327,165.72,165.68,2.2332]
[1717504728457,2.2327,165.72,165.69,7.02]
[1717504734637,2.2327,165.72,165.7,7.02]
[1717504739765,2.2327,165.72,165.68,2.2332]
[1717504739945,20.0905,165.75,165.69,7.02]
[1717504740145,2.233,165.7,165.67,7.02]
[1717504740657,2.2331,165.69,165.65,2.2335]
[1717504740860,2.2331,165.69,165.67,7.02]
[1717504742250,2.2332,165.68,165.65,2.2335]
[1717504742450,2.2331,165.69,165.66,7.02]
[1717504743049,2.233,165.7,165.68,7.02]
[1717504743751,13.394,165.75,165.69,7.02]
[1717504744060,2.2326,165.73,165.71,7.02]
[1717504744365,2.2324,165.74,165.71,7.02]
[1717504744564,2.2325,165.73,165.72,7.02]
[1717504745168,2.2324,165.74,165.72,7.02]
[1717504745480,2.2325,165.73,165.72,7.02]
[1717504746173,2.2327,165.72,165.71,7.02]
[1717504746349,2.2327,165.72,165.68,2.2331]
[1717504746667,2.2327,165.72,165.7,7.02]
[1717504748471,2.2328,165.71,165.67,2.2332]
[1717504748851,2.2328,165.71,165.68,7.02]
[1717504749180,2.233,165.69,165.68,7.02]
[1717504749343,2.2332,165.68,165.64,2.2336]
[1717504749546,2.2332,165.68,165.64,9.2536]
[1717504749761,2.2332,165.68,165.65,7.02]
[1717504749963,2.2333,165.67,165.65,7.02]
[1717504750153,2.2333,165.67,165.62,6.3224]
[1717504750367,2.2333,165.67,165.65,7.02]
[1717504750570,2.2333,165.67,165.64,7.02]
[1717504751290,2.2333,165.67,165.65,7.02]
[1717504751455,2.2333,165.67,165.66,7.02]
[1717504751660,2.2332,165.68,165.66,7.02]
[1717504751860,2.2332,165.68,165.67,7.02]
[1717504752692,2.2331,165.69,165.67,7.02]
[1717504752985,2.2331,165.69,165.68,7.02]
[1717504753765,2.233,165.7,165.68,7.02]
[1717504753962,2.233,165.7,165.69,7.02]
[1717504754907,2.233,165.7,165.65,2.2335]
[1717504755262,2.233,165.7,165.68,7.02]
[1717504755786,2.233,165.69,165.68,7.02]
[1717504758592,2.233,165.7,165.68,7.02]
[1717504759790,10.17971168,165.75,165.69,7.02]
[1717504759791,2.2327,165.72,165.69,7.02]
[1717504759987,2.2327,165.72,165.71,7.02]
[1717504761290,2.2325,165.73,165.71,7.02]
[1717504761492,2.2325,165.73,165.72,7.02]
[1717504761692,14.38187948,165.78,165.72,7.02]
[1717504761693,8.9269,165.79,165.72,7.02]
[1717504761988,2.2324,165.74,165.7,8.6201]
[1717504762290,2.2324,165.74,165.73,7.02]
[1717504762983,2.2323,165.75,165.73,7.02]
[1717504763776,2.2321,165.76,165.73,7.02]
[1717504764378,2.2322,165.75,165.73,7.02]
[1717504764975,2.2324,165.74,165.73,7.02]
[1717504767898,2.2323,165.75,165.73,7.02]
[1717504771102,2.2323,165.75,165.71,2.2327]
[1717504771307,2.2323,165.75,165.73,7.02]
[1717504771796,2.2322,165.76,165.73,7.02]
[1717504772190,2.2322,165.76,165.74,7.02]
[1717504774004,2.2322,165.75,165.74,7.02]
[1717504774593,2.2322,165.75,165.73,7.02]
[1717504775195,2.2324,165.74,165.73,7.02]
[1717504775398,2.2323,165.75,165.73,7.02]
[1717504776300,2.2324,165.74,165.7,8.6201]
[1717504776621,2.2324,165.74,165.72,7.02]
[1717504777103,2.2323,165.75,165.72,7.02]
[1717504777413,2.2323,165.75,165.73,7.02]
[1717504777593,4.4638,165.78,165.71,2.2327]
[1717504777791,2.2324,165.74,165.72,7.02]
[1717504778405,2.2325,165.73,165.69,2.233]
[1717504778589,4.4643,165.76,165.72,7.02]
[1717504778590,2.2324,165.74,165.72,7.02]
[1717504782104,2.2322,165.76,165.73,7.02]
[1717504782297,15.40121582,165.8,165.75,7.02]
[1717504782618,4.4635,165.79,165.75,7.02]
[1717504782791,2.232,165.77,165.75,7.02]
[1717504783496,2.2321,165.76,165.75,7.02]
[1717504784820,2.2321,165.76,165.74,7.02]
[1717504785123,2.2322,165.75,165.74,7.02]
[1717504785623,2.2322,165.75,165.73,7.02]
[1717504785810,2.2322,165.75,165.74,7.02]
[1717504786410,2.2324,165.74,165.73,7.02]
[1717504786994,2.2323,165.75,165.73,7.02]
[1717504788090,2.2322,165.76,165.74,7.02]
[1717504789822,2.2322,165.76,165.75,7.02]
[1717504790022,6.47441582,165.8,165.75,7.02]
[1717504790233,2.2319,165.78,165.76,7.02]
[1717504790694,2.232,165.77,165.76,7.02]
[1717504795110,2.2319,165.78,165.76,7.02]
[1717504795313,2.2319,165.78,165.77,7.02]
[1717504795908,4.463,165.81,165.77,7.02]
[1717504795909,2.2317,165.79,165.77,7.02]
[1717504796150,2.2317,165.79,165.74,2.2323]
[1717504796151,2.2317,165.79,165.78,7.02]
[1717504797404,4.4624,165.83,165.78,7.02]
[1717504797606,2.2316,165.8,165.77,6.2108]
[1717504797801,2.2316,165.8,165.79,7.02]
[1717504801500,2.2315,165.81,165.79,13.1771]
[1717504801706,2.2315,165.81,165.8,7.02]
[1717504802121,2.2314,165.82,165.8,7.02]
[1717504802319,2.2314,165.82,165.81,7.02]
[1717504802611,2.2312,165.83,165.81,7.02]
[1717504802829,2.2312,165.83,165.82,7.02]
[1717504803421,8.9223,165.88,165.82,7.02]
[1717504803719,2.2309,165.85,165.84,7.02]
[1717504805533,2.2308,165.86,165.84,7.02]
[1717504805737,2.2308,165.86,165.85,7.02]
[1717504807036,2.2306,165.87,165.85,7.02]
[1717504807235,2.2306,165.88,165.86,7.02]
[1717504807436,2.2306,165.88,165.87,7.02]
[1717504808813,2.2304,165.89,165.87,7.02]
[1717504809139,2.2302,165.9,165.88,7.02]
[1717504809436,2.2302,165.9,165.89,7.02]
[1717504810447,2.23,165.92,165.89,7.02]
[1717504810750,2.2299,165.93,165.91,7.02]
[1717504810967,2.2299,165.93,165.92,7.02]
[1717504811549,4.4592,165.95,165.9,7.02]
[1717504811550,2.23,165.92,165.9,7.02]
[1717504811757,2.2301,165.91,165.9,7.02]
[1717504814052,2.23,165.92,165.9,7.02]
[1717504814434,2.2299,165.93,165.91,7.02]
[1717504814629,2.2299,165.93,165.92,7.02]
[1717504815336,2.2299,165.93,165.88,18.1617]
[1717504815536,2.2299,165.92,165.89,6.1356]
[1717504815763,2.2299,165.92,165.91,7.02]
[1717504816753,2.2301,165.91,165.87,8.5043]
[1717504816969,2.2301,165.91,165.9,7.02]
[1717504817337,2.2301,165.91,165.89,7.02]
[1717504817532,15.9391,165.94,165.87,6.2737]
[1717504817847,2.2303,165.9,165.88,7.02]
[1717504818738,2.2304,165.89,165.85,2.2308]
[1717504818963,2.2304,165.89,165.83,19.5113]
[1717504818964,2.2305,165.88,165.84,2.231]
[1717504819133,2.2306,165.87,165.83,2.2311]
[1717504819333,2.2307,165.86,165.8,6.4847]
[1717504819550,2.2307,165.86,165.84,7.02]
[1717504820333,4.4603,165.91,165.84,7.02]
[1717504820550,2.2306,165.88,165.86,7.02]
[1717504821740,2.2304,165.89,165.87,7.02]
[1717504821941,2.2303,165.9,165.88,7.02]
[1717504822140,2.2303,165.89,165.88,7.02]
[1717504824063,2.2303,165.89,165.88,7.02]
[1717504824441,2.2303,165.89,165.86,6.2539]
[1717504824743,2.2303,165.89,165.87,7.02]
[1717504825665,2.2303,165.89,165.88,7.02]
[1717504826278,2.2303,165.9,165.88,7.02]
[1717504826445,2.2303,165.9,165.86,8.4846]
[1717504826647,2.2303,165.9,165.89,7.02]
[1717504828246,2.2304,165.89,165.88,7.02]
[1717504829869,2.2304,165.89,165.85,2.2308]
[1717504830460,2.2304,165.89,165.87,7.02]
[1717504832461,2.2304,165.89,165.88,7.02]
[1717504832978,2.2303,165.9,165.88,7.02]
[1717504833975,2.2303,165.89,165.88,7.02]
[1717504834859,8.9198,165.93,165.88,7.02]
[1717504835083,4.4595,165.94,165.9,7.02]
[1717504835251,2.2299,165.93,165.91,7.02]
[1717504835452,4.4592,165.95,165.91,7.02]
[1717504835647,2.2299,165.92,165.87,2.2306]
[1717504835852,2.2299,165.92,165.91,7.02]
[1717504836785,4.4594,165.94,165.91,13.1717]
[1717504836786,2.2297,165.94,165.91,13.1717]
[1717504837075,2.2297,165.94,165.93,7.02]
[1717504842361,11.148,165.95,165.92,7.02]
[1717504843885,2.2298,165.93,165.92,7.02]
[1717504845062,11.148,165.95,165.88,2.2304]
[1717504845063,4.4594,165.94,165.89,6.356]
[1717504845261,4.4594,165.94,165.91,7.02]
[1717504845481,2.2301,165.92,165.89,6.356]
[1717504845677,2.2301,165.92,165.91,7.02]
[1717504846490,2.2301,165.92,165.89,6.356]
[1717504846665,2.2301,165.92,165.91,7.02]
[1717504847073,2.2301,165.91,165.88,0.17]
[1717504847383,2.2301,165.91,165.86,0.17]
[1717504847384,2.2301,165.91,165.9,7.02]
[1717504848166,2.2301,165.91,165.87,2.2305]
[1717504848380,2.2301,165.91,165.9,7.02]
[1717504849576,2.2301,165.91,165.89,7.02]
[1717504851790,2.2304,165.89,165.87,7.02]
[1717504852092,2.2305,165.88,165.84,2.231]
[1717504852260,2.2304,165.89,165.87,7.02]
[1717504852460,2.2305,165.88,165.84,2.231]
[1717504852661,4.4605,165.9,165.83,6.5287]
[1717504852865,2.2306,165.87,165.85,7.02]
[1717504853087,2.2306,165.87,165.83,2.2311]
[1717504853259,2.2306,165.87,165.84,7.02]
[1717504853990,2.2306,165.87,165.83,2.2311]
[1717504854166,2.2306,165.87,165.84,7.02]
[1717504854363,2.2306,165.87,165.83,2.2311]
[1717504854593,2.2308,165.86,165.82,2.2312]
[1717504854906,2.2308,165.86,165.84,7.02]
[1717504855203,4.4598,165.93,165.85,9.2508]
[1717504855366,11.4798,165.93,165.86,9.2506]
[1717504855760,2.2303,165.9,165.86,9.2506]
[1717504855984,2.2303,165.9,165.87,7.02]
[1717504856870,2.2303,165.9,165.88,7.02]
[1717504857471,2.2303,165.9,165.85,2.2308]
[1717504857472,2.2303,165.9,165.87,7.02]
[1717504857690,2.2304,165.89,165.87,7.02]
[1717504858792,2.2303,165.9,165.88,7.02]
[1717504858995,2.23,165.92,165.89,7.02]
[1717504859969,2.2301,165.91,165.89,7.02]
[1717504860195,13.3777,165.95,165.89,7.02]
[1717504860395,2.23,165.92,165.9,7.02]
[1717504862802,2.23,165.92,165.91,7.02]
[1717504862978,2.2297,165.95,165.91,9.25]
[1717504863177,2.2297,165.95,165.87,17.3597]
[1717504863178,2.2297,165.94,165.93,7.02]
[1717504863689,2.2297,165.94,165.92,7.02]
[1717504863999,2.2297,165.94,165.93,7.02]
[1717504866577,2.2297,165.94,165.9,8.7455]
[1717504866786,2.2297,165.94,165.93,7.02]
[1717504869299,2.23,165.92,165.88,2.2304]
[1717504869501,2.2301,165.91,165.87,2.2306]
[1717504869805,2.2301,165.91,165.9,7.02]
[1717504869985,2.2301,165.91,165.87,8.246]
[1717504870179,2.2301,165.91,165.89,7.02]
[1717504870599,2.23,165.92,165.87,8.246]
[1717504870793,2.23,165.92,165.89,7.02]